fUST/lending_fUST_20240122
["ID","MTS","AMOUNT","RATE_DAILY","PERIOD"]
[312389762,1705855845323,-328.980787,0.00028493,2]
[312389763,1705855845334,-328.980787,0.00028493,2]
[312389764,1705855845345,-151.0,0.00028493,2]
[312389765,1705855845354,-151.0,0.00028493,2]
[312389766,1705855845363,-470.645541,0.00028493,2]
[312389767,1705855845374,-470.645541,0.00028493,2]
[312389768,1705855845383,-470.645541,0.00028493,2]
[312389769,1705855845392,-470.645541,0.00028493,2]
[312389770,1705855845401,-1095.59100983,0.00028493,2]
[312389771,1705855845410,-500.0,0.00028493,2]
[312389772,1705855845418,-500.0,0.00028493,2]
[312389773,1705855845428,-500.0,0.00028493,2]
[312389776,1705855845436,-500.0,0.00028493,2]
[312389778,1705855845445,-356.98673676,0.00028493,2]
[312389781,1705855845454,-387.69861089,0.00028493,2]
[312389783,1705855845463,-500.0,0.00028493,2]
[312389785,1705855845472,-500.0,0.00028493,2]
[312389786,1705855845482,-712.42,0.00028493,2]
[312389787,1705855845491,-771.97,0.00028493,2]
[312389788,1705855845500,-582.03,0.00028493,2]
[312389789,1705855845509,-500.0,0.00028493,2]
[312389790,1705855845518,-500.0,0.00028493,2]
[312389791,1705855845527,-1742.76,0.00028493,2]
[312389792,1705855845536,-2145.78,0.00028493,2]
[312389793,1705855845546,-500.0,0.00028493,2]
[312389794,1705855845556,-500.0,0.00028493,2]
[312389795,1705855845565,-790.17,0.00028493,2]
[312389796,1705855845575,-500.0,0.00028493,2]
[312389797,1705855845584,-500.0,0.00028493,2]
[312389798,1705855845593,-500.0,0.00028493,2]
[312389799,1705855845602,-500.0,0.00028493,2]
[312389800,1705855845611,-500.0,0.00028493,2]
[312389801,1705855845621,-500.0,0.00028493,2]
[312389802,1705855845630,-436.1802005,0.00028493,2]
[312389803,1705855845640,-462.66966268,0.00028493,2]
[312389804,1705855845649,-446.83956969,0.00028493,2]
[312389806,1705855845659,-500.0,0.00028493,2]
[312389807,1705855845668,-500.0,0.00028493,2]
[312389808,1705855845682,-500.0,0.00028493,2]
[312389809,1705855845693,-680.55,0.00028493,2]
[312389810,1705855845704,-500.0,0.00028493,2]
[312389811,1705855845714,-832.77,0.00028493,2]
[312389812,1705855845725,-500.0,0.00028493,2]
[312389814,1705855845734,-500.0,0.00028493,2]
[312389815,1705855845743,-500.0,0.00028493,2]
[312389816,1705855845753,-1000.0,0.00028493,2]
[312389817,1705855845763,-500.0,0.00028493,2]
[312389818,1705855845773,-500.0,0.00028493,2]
[312389819,1705855845782,-500.0,0.00028493,2]
[312389820,1705855845792,-591.22,0.00028493,2]
[312389821,1705855845803,-1704.0,0.00028493,2]
[312389822,1705855845815,-500.0,0.00028493,2]
[312389823,1705855845824,-763.98,0.00028493,2]
[312389824,1705855845835,-500.0,0.00028493,2]
[312389825,1705855845845,-500.0,0.00028493,2]
[312389827,1705855845855,-500.0,0.00028493,2]
[312389829,1705855845864,-500.0,0.00028493,2]
[312389830,1705855845874,-1314.58,0.00028493,2]
[312389832,1705855845882,-500.0,0.00028493,2]
[312389833,1705855845892,-500.0,0.00028493,2]
[312389834,1705855845901,-382.93060218,0.00028493,2]
[312389835,1705855845910,-500.0,0.00028493,2]
[312389836,1705855845919,-580.19,0.00028493,2]
[312389837,1705855845929,-774.88,0.00028493,2]
[312389838,1705855845938,-669.89,0.00028493,2]
[312389839,1705855845947,-500.0,0.00028493,2]
[312389840,1705855845956,-722.01,0.00028493,2]
[312389841,1705855845965,-500.0,0.00028493,2]
[312389842,1705855845974,-530.76,0.00028493,2]
[312389843,1705855845983,-776.97,0.00028493,2]
[312389844,1705855845992,-500.0,0.00028493,2]
[312389845,1705855846001,-828.42,0.00028493,2]
[312389846,1705855846010,-500.0,0.00028493,2]
[312389847,1705855846019,-500.0,0.00028493,2]
[312389848,1705855846029,-500.0,0.00028493,2]
[312389849,1705855846038,-500.0,0.00028493,2]
[312389850,1705855846048,-20233.72,0.00028493,2]
[312389851,1705855846057,-1728.01,0.00028493,2]
[312389852,1705855846066,-500.0,0.00028493,2]
[312389853,1705855846075,-4597.32,0.00028493,2]
[312389854,1705855846084,-500.0,0.00028493,2]
[312389855,1705855846093,-422.2326838,0.00028493,2]
[312389856,1705855846445,-2322.26,0.00027387,3]
[312389857,1705855846455,-500.0,0.00027397,2]
[312389858,1705855846464,-219.39829432,0.00027671,2]
[312389859,1705855846474,-3195.235076,0.00027898,2]
[312389860,1705855846483,-3165.0338458,0.00027898,2]
[312389861,1705855846494,-30.2012302,0.00027898,2]
[312389862,1705855846504,-3195.235076,0.00027945,2]
[312389863,1705855846514,-1015.06401031,0.00027945,2]
[312389864,1705855846525,-2180.17106569,0.00027945,2]
[312389865,1705855846535,-1873.72893432,0.00027945,2]
[312389866,1705855846628,-154.73694719,0.00027386,4]
[312389867,1705855846649,-125.66305281,0.00027945,2]
[312389868,1705855846661,-1195.84308887,0.00027945,2]
[312389869,1705855846671,-3128.53918557,0.00027945,2]
[312389870,1705855846683,-66.69589043,0.00027945,2]
[312389871,1705855846692,-238.83435839,0.00028219,2]
[312389874,1705856055774,150.72868836,0.00028796,120]
[312389918,1705856655139,150.74373565,0.00028953,120]
[312389934,1705856843083,-154.75239617,0.00021561,4]
[312389935,1705856843104,-711.64153599,0.00021562,2]
[312389936,1705856843125,-7104.23718432,0.00021563,2]
[312389946,1705856889990,150.74373565,0.00029012,120]
[312390052,1705857032536,-154.75239617,0.00021562,2]
[312390054,1705857032548,-256.34131298,0.00021563,2]
[312390056,1705857032559,-164.1685035,0.00021688,2]
[312390058,1705857032570,-50.25998755,0.00021853,2]
[312390061,1705857032584,-135.11060857,0.00021853,2]
[312390063,1705857032595,-433.30254533,0.00021975,2]
[312390065,1705857032607,-477.55876098,0.00021975,2]
[312390067,1705857032618,-156.56685875,0.00022,4]
[312390069,1705857032629,-2931.89541645,0.00022278,2]
[312390072,1705857032643,-21968.10458355,0.00022278,2]
[312390074,1705857032654,-154.75239617,0.00022547,4]
[312390076,1705857032668,-167.160273,0.00022548,2]
[312390078,1705857032680,-174.159642,0.00022771,2]
[312390080,1705857032690,-171.16873058,0.00023194,2]
[312390082,1705857032704,-200.0,0.00024505,7]
[312390084,1705857032714,-167.160273,0.00025622,2]
[312390086,1705857032725,-796.87380964,0.00026388,2]
[312390088,1705857032737,-660.278821,0.000264,2]
[312390090,1705857032748,-280.0,0.00026955,15]
[312390092,1705857032759,-4992.59,0.00027387,3]
[312390094,1705857032769,-4160.49,0.00027387,3]
[312390096,1705857032780,-3467.08,0.00027387,3]
[312390098,1705857032790,-2889.23,0.00027387,3]
[312390100,1705857032803,-2022.65166079,0.00027395,2]
[312390103,1705857032813,-2106.30961678,0.00027395,2]
[312390105,1705857032824,-484.85135055,0.00027395,2]
[312390107,1705857032835,-155.03083291,0.00027396,2]
[312390109,1705857032845,-155.23205591,0.00027396,2]
[312390111,1705857032856,-440.74121936,0.00027396,2]
[312390113,1705857032867,-500.0,0.00027397,2]
[312390115,1705857032878,-500.0,0.00027397,2]
[312390117,1705857032888,-500.0,0.00027397,2]
[312390119,1705857032898,-500.0,0.00027397,2]
[312390121,1705857032909,-491.60142791,0.00027397,2]
[312390123,1705857032919,-500.0,0.00027397,2]
[312390125,1705857032930,-500.0,0.00027397,2]
[312390127,1705857032940,-500.0,0.00027397,2]
[312390128,1705857032951,-547.53,0.00027397,2]
[312390129,1705857032962,-500.0,0.00027397,2]
[312390130,1705857032973,-500.0,0.00027397,2]
[312390131,1705857032983,-500.0,0.00027397,2]
[312390132,1705857032994,-500.0,0.00027397,2]
[312390133,1705857033005,-500.0,0.00027397,2]
[312390134,1705857033015,-500.0,0.00027397,2]
[312390135,1705857033025,-500.0,0.00027397,2]
[312390136,1705857033036,-500.0,0.00027397,2]
[312390137,1705857033047,-500.0,0.00027397,2]
[312390138,1705857033057,-500.0,0.00027397,2]
[312390139,1705857033068,-500.0,0.00027397,2]
[312390140,1705857033078,-399.71925343,0.00027397,2]
[312390141,1705857033088,-500.0,0.00027397,2]
[312390142,1705857033099,-500.0,0.00027397,2]
[312390143,1705857033109,-1000.0,0.00027397,2]
[312390144,1705857033119,-500.0,0.00027397,2]
[312390145,1705857033131,-500.0,0.00027397,2]
[312390146,1705857033141,-500.76349209,0.00027397,2]
[312390147,1705857033152,-500.0,0.00027397,2]
[312390148,1705857033164,-640.66,0.00027397,2]
[312390149,1705857033176,-500.0,0.00027397,2]
[312390151,1705857033186,-754.37,0.00027397,2]
[312390167,1705857033355,-367.3266649,0.00027397,2]
[312390169,1705857033368,-500.0,0.00027397,2]
[312390171,1705857033377,-500.0,0.00027397,2]
[312390173,1705857033386,-500.0,0.00027397,2]
[312390175,1705857033395,-500.0,0.00027397,2]
[312390177,1705857033404,-155.0,0.00027397,2]
[312390179,1705857033414,-500.0,0.00027397,2]
[312390181,1705857033423,-500.0,0.00027397,2]
[312390183,1705857033433,-689.32,0.00027397,2]
[312390185,1705857033442,-500.0,0.00027397,2]
[312390187,1705857033451,-500.0,0.00027397,2]
[312390189,1705857033460,-500.0,0.00027397,2]
[312390191,1705857033470,-772.78,0.00027397,2]
[312390193,1705857033479,-500.0,0.00027397,2]
[312390195,1705857033488,-500.0,0.00027397,2]
[312390197,1705857033499,-500.0,0.00027397,2]
[312390199,1705857033508,-500.0,0.00027397,2]
[312390201,1705857033518,-500.0,0.00027397,2]
[312390204,1705857033527,-500.0,0.00027397,2]
[312390206,1705857033536,-741.27,0.00027397,2]
[312390208,1705857033545,-500.0,0.00027397,2]
[312390210,1705857033555,-500.0,0.00027397,2]
[312390212,1705857033564,-500.0,0.00027397,2]
[312390214,1705857033574,-500.0,0.00027397,2]
[312390216,1705857033583,-500.0,0.00027397,2]
[312390218,1705857033592,-500.0,0.00027397,2]
[312390220,1705857033602,-504.20658948,0.00027397,2]
[312390222,1705857033611,-500.0,0.00027397,2]
[312390224,1705857033620,-500.0,0.00027397,2]
[312390226,1705857033629,-500.0,0.00027397,2]
[312390228,1705857033638,-500.0,0.00027397,2]
[312390230,1705857033648,-500.0,0.00027397,2]
[312390232,1705857033660,-500.0,0.00027397,2]
[312390233,1705857033669,-780.22,0.00027397,2]
[312390235,1705857033678,-500.0,0.00027397,2]
[312390237,1705857033688,-500.0,0.00027397,2]
[312390239,1705857033698,-500.0,0.00027397,2]
[312390241,1705857033707,-1642.07,0.00027397,2]
[312390243,1705857033716,-500.0,0.00027397,2]
[312390245,1705857033726,-1945.3,0.00027397,2]
[312390247,1705857033735,-578.83134708,0.00027397,2]
[312390249,1705857033745,-500.0,0.00027397,2]
[312390250,1705857033755,-500.0,0.00027397,2]
[312390252,1705857033765,-500.0,0.00027397,2]
[312390253,1705857033775,-500.0,0.00027397,2]
[312390254,1705857033784,-500.0,0.00027397,2]
[312390255,1705857033794,-831.18,0.00027397,2]
[312390256,1705857033804,-500.0,0.00027397,2]
[312390257,1705857033813,-500.0,0.00027397,2]
[312390258,1705857033822,-1000.0,0.00027397,2]
[312390259,1705857033831,-500.0,0.00027397,2]
[312390260,1705857033842,-500.0,0.00027397,2]
[312390261,1705857033851,-500.0,0.00027397,2]
[312390262,1705857033860,-538.16,0.00027397,2]
[312390263,1705857033869,-500.0,0.00027397,2]
[312390264,1705857033879,-500.0,0.00027397,2]
[312390265,1705857033888,-183.33898709,0.00027397,2]
[312390266,1705857033897,-500.0,0.00027397,2]
[312390267,1705857033906,-500.0,0.00027397,2]
[312390268,1705857033915,-1526.04,0.00027397,2]
[312390269,1705857033925,-500.0,0.00027397,2]
[312390270,1705857033934,-500.0,0.00027397,2]
[312390271,1705857033943,-500.0,0.00027397,2]
[312390272,1705857033952,-500.0,0.00027397,2]
[312390273,1705857033961,-500.0,0.00027397,2]
[312390274,1705857033971,-500.0,0.00027397,2]
[312390275,1705857033980,-372.99330361,0.00027397,2]
[312390276,1705857033995,-127.00669639,0.00027397,2]
[312390277,1705857034005,-500.0,0.00027397,2]
[312390278,1705857034015,-500.0,0.00027397,2]
[312390279,1705857034024,-1286.37,0.00027397,2]
[312390280,1705857034033,-500.0,0.00027397,2]
[312390281,1705857034042,-1264.69,0.00027397,2]
[312390282,1705857034053,-500.0,0.00027397,2]
[312390283,1705857034063,-500.0,0.00027397,2]
[312390284,1705857034072,-500.0,0.00027397,2]
[312390285,1705857034082,-500.0,0.00027397,2]
[312390286,1705857034091,-500.0,0.00027397,2]
[312390287,1705857034101,-458.1347498,0.00027397,2]
[312390288,1705857034111,-500.0,0.00027397,2]
[312390289,1705857034121,-178.74155867,0.00027397,2]
[312390290,1705857034130,-500.0,0.00027397,2]
[312390291,1705857034140,-500.0,0.00027397,2]
[312390292,1705857034149,-623.39,0.00027397,2]
[312390293,1705857034159,-2187.95914348,0.00027397,2]
[312390356,1705857038274,-154.83085652,0.00027397,2]
[312390357,1705857038284,-500.0,0.00027397,2]
[312390358,1705857038293,-500.0,0.00027397,2]
[312390359,1705857038302,-552.68,0.00027397,2]
[312390360,1705857038311,-500.0,0.00027397,2]
[312390361,1705857038320,-1251.56,0.00027397,2]
[312390362,1705857038330,-661.84,0.00027397,2]
[312390363,1705857038339,-500.0,0.00027397,2]
[312390364,1705857038350,-1897.52,0.00027397,2]
[312390365,1705857038359,-500.0,0.00027397,2]
[312390366,1705857038368,-619.60676546,0.00027397,2]
[312390367,1705857038377,-614.06,0.00027397,2]
[312390368,1705857038386,-500.0,0.00027397,2]
[312390369,1705857038395,-500.0,0.00027397,2]
[312390370,1705857038404,-1584.01,0.00027397,2]
[312390371,1705857038413,-4316.54,0.00027397,2]
[312390372,1705857038422,-500.0,0.00027397,2]
[312390373,1705857038431,-1000.0,0.00027397,2]
[312390374,1705857038441,-18547.57,0.00027397,2]
[312390375,1705857038451,-500.0,0.00027397,2]
[312390376,1705857038460,-500.0,0.00027397,2]
[312390377,1705857038470,-310.73024265,0.00027397,2]
[312390378,1705857038480,-580.5625675,0.00027397,2]
[312390379,1705857038489,-710.31,0.00027397,2]
[312390380,1705857038498,-500.0,0.00027397,2]
[312390381,1705857038507,-500.0,0.00027397,2]
[312390382,1705857038516,-11571.18,0.00027397,2]
[312390383,1705857038525,-733.06,0.00027397,2]
[312390384,1705857038535,-500.0,0.00027397,2]
[312390385,1705857038545,-874.03,0.00027397,2]
[312390386,1705857038553,-1581.71,0.00027397,2]
[312390387,1705857038562,-500.0,0.00027397,2]
[312390388,1705857038572,-500.0,0.00027397,2]
[312390389,1705857038581,-500.0,0.00027397,2]
[312390390,1705857038590,-500.0,0.00027397,2]
[312390391,1705857038599,-500.0,0.00027397,2]
[312390392,1705857038608,-500.0,0.00027397,2]
[312390393,1705857038617,-500.0,0.00027397,2]
[312390394,1705857038626,-891.85,0.00027397,2]
[312390395,1705857038635,-500.0,0.00027397,2]
[312390396,1705857038644,-6210.35,0.00027397,2]
[312390397,1705857038654,-500.0,0.00027397,2]
[312390398,1705857038668,-500.0,0.00027397,2]
[312390399,1705857038677,-792.41,0.00027397,2]
[312390400,1705857038686,-500.0,0.00027397,2]
[312390401,1705857038695,-500.0,0.00027397,2]
[312390402,1705857038705,-1450.53,0.00027397,2]
[312390403,1705857038714,-500.0,0.00027397,2]
[312390404,1705857038723,-1155.39,0.00027397,2]
[312390405,1705857038733,-500.0,0.00027397,2]
[312390406,1705857038742,-500.0,0.00027397,2]
[312390407,1705857038751,-1002.97,0.00027397,2]
[312390408,1705857038761,-500.0,0.00027397,2]
[312390409,1705857038771,-7122.83,0.00027397,2]
[312390410,1705857038780,-500.0,0.00027397,2]
[312390411,1705857038789,-1983.83,0.00027397,2]
[312390412,1705857038798,-1127.16,0.00027397,2]
[312390413,1705857038807,-3991.04,0.00027397,2]
[312390414,1705857038816,-500.0,0.00027397,2]
[312390415,1705857038826,-594.64113773,0.00027397,2]
[312390416,1705857038836,-3030.43690304,0.00027397,2]
[312390417,1705857038849,-2656.09309696,0.00027397,2]
[312390418,1705857038859,-717.18,0.00027397,2]
[312390419,1705857038869,-1020.67,0.00027397,2]
[312390420,1705857038878,-10000.0,0.00027397,10]
[312390421,1705857038888,-500.0,0.00027397,2]
[312390422,1705857038897,-500.0,0.00027397,2]
[312390423,1705857038906,-306.0,0.00027397,2]
[312390424,1705857038915,-7379.86363499,0.000275,2]
[312390425,1705857038925,-500.0,0.00027671,2]
[312390426,1705857038934,-500.0,0.00027671,2]
[312390427,1705857038943,-500.0,0.00027671,2]
[312390428,1705857038953,-500.0,0.00027671,2]
[312390429,1705857038962,-547.53,0.00027671,2]
[312390430,1705857038972,-500.0,0.00027671,2]
[312390431,1705857038982,-500.0,0.00027671,2]
[312390432,1705857038991,-501.85237378,0.00027671,2]
[312390433,1705857039002,-500.0,0.00027671,2]
[312390434,1705857039013,-500.0,0.00027671,2]
[312390435,1705857039024,-500.0,0.00027671,2]
[312390436,1705857039033,-500.0,0.00027671,2]
[312390437,1705857039042,-500.0,0.00027671,2]
[312390438,1705857039051,-500.0,0.00027671,2]
[312390439,1705857039060,-286.77019817,0.00027671,2]
[312390440,1705857039069,-500.0,0.00027671,2]
[312390441,1705857039078,-640.66,0.00027671,2]
[312390442,1705857039087,-500.0,0.00027671,2]
[312390443,1705857039096,-754.37,0.00027671,2]
[312390444,1705857039107,-500.0,0.00027671,2]
[312390445,1705857039116,-500.0,0.00027671,2]
[312390446,1705857039125,-500.0,0.00027671,2]
[312390447,1705857039134,-500.0,0.00027671,2]
[312390448,1705857039145,-500.0,0.00027671,2]
[312390449,1705857039154,-689.32,0.00027671,2]
[312390450,1705857039162,-500.0,0.00027671,2]
[312390451,1705857039172,-500.0,0.00027671,2]
[312390452,1705857039181,-500.0,0.00027671,2]
[312390453,1705857039194,-772.78,0.00027671,2]
[312390454,1705857039203,-500.0,0.00027671,2]
[312390455,1705857039213,-500.0,0.00027671,2]
[312390456,1705857039222,-500.0,0.00027671,2]
[312390457,1705857039231,-500.0,0.00027671,2]
[312390458,1705857039240,-741.27,0.00027671,2]
[312390459,1705857039249,-500.0,0.00027671,2]
[312390460,1705857039259,-500.0,0.00027671,2]
[312390461,1705857039269,-500.0,0.00027671,2]
[312390462,1705857039279,-500.0,0.00027671,2]
[312390463,1705857039289,-500.0,0.00027671,2]
[312390464,1705857039298,-500.0,0.00027671,2]
[312390465,1705857039308,-780.22,0.00027671,2]
[312390466,1705857039318,-500.0,0.00027671,2]
[312390467,1705857039327,-500.0,0.00027671,2]
[312390468,1705857039336,-500.0,0.00027671,2]
[312390469,1705857039346,-1642.07,0.00027671,2]
[312390470,1705857039356,-500.0,0.00027671,2]
[312390471,1705857039365,-1945.3,0.00027671,2]
[312390472,1705857039374,-500.0,0.00027671,2]
[312390473,1705857039383,-500.0,0.00027671,2]
[312390474,1705857039393,-500.0,0.00027671,2]
[312390475,1705857039402,-516.43736873,0.00027671,2]
[312390476,1705857039412,-831.18,0.00027671,2]
[312390477,1705857039422,-500.0,0.00027671,2]
[312390478,1705857039431,-500.0,0.00027671,2]
[312390479,1705857039441,-1000.0,0.00027671,2]
[312390480,1705857039450,-221.03412024,0.00027671,2]
[312390481,1705857039461,-500.0,0.00027671,2]
[312390482,1705857039470,-500.0,0.00027671,2]
[312390483,1705857039479,-538.16,0.00027671,2]
[312390484,1705857039488,-500.0,0.00027671,2]
[312390485,1705857039497,-349.449581,0.00027671,2]
[312390486,1705857039506,-500.0,0.00027671,2]
[312390487,1705857039515,-1526.04,0.00027671,2]
[312390488,1705857039524,-500.0,0.00027671,2]
[312390489,1705857039533,-500.0,0.00027671,2]
[312390490,1705857039543,-500.0,0.00027671,2]
[312390491,1705857039551,-500.0,0.00027671,2]
[312390492,1705857039561,-500.0,0.00027671,2]
[312390493,1705857039569,-500.0,0.00027671,2]
[312390494,1705857039578,-500.0,0.00027671,2]
[312390495,1705857039587,-563.13250472,0.00027671,2]
[312390496,1705857039597,-1286.37,0.00027671,2]
[312390497,1705857039606,-500.0,0.00027671,2]
[312390498,1705857039615,-1264.69,0.00027671,2]
[312390499,1705857039624,-500.0,0.00027671,2]
[312390500,1705857039633,-500.0,0.00027671,2]
[312390501,1705857039642,-330.07898599,0.00027671,2]
[312390502,1705857039653,-500.0,0.00027671,2]
[312390503,1705857039665,-500.0,0.00027671,2]
[312390504,1705857039675,-500.0,0.00027671,2]
[312390505,1705857039684,-500.0,0.00027671,2]
[312390506,1705857039695,-623.39,0.00027671,2]
[312390507,1705857039704,-2342.79,0.00027671,2]
[312390508,1705857039713,-500.0,0.00027671,2]
[312390509,1705857039722,-552.68,0.00027671,2]
[312390510,1705857039731,-500.0,0.00027671,2]
[312390511,1705857039741,-1251.56,0.00027671,2]
[312390512,1705857039750,-661.84,0.00027671,2]
[312390513,1705857039760,-500.0,0.00027671,2]
[312390514,1705857039769,-1897.52,0.00027671,2]
[312390515,1705857039893,-500.0,0.00027671,2]
[312390516,1705857039903,-614.06,0.00027671,2]
[312390517,1705857039913,-500.0,0.00027671,2]
[312390518,1705857039922,-500.0,0.00027671,2]
[312390519,1705857039932,-1584.01,0.00027671,2]
[312390520,1705857039941,-4316.54,0.00027671,2]
[312390521,1705857039950,-500.0,0.00027671,2]
[312390522,1705857039960,-18547.57,0.00027671,2]
[312390523,1705857039970,-500.0,0.00027671,2]
[312390524,1705857039979,-500.0,0.00027671,2]
[312390525,1705857039988,-710.31,0.00027671,2]
[312390526,1705857039998,-500.0,0.00027671,2]
[312390527,1705857040007,-500.0,0.00027671,2]
[312390528,1705857040017,-11571.18,0.00027671,2]
[312390529,1705857040026,-733.06,0.00027671,2]
[312390530,1705857040035,-500.0,0.00027671,2]
[312390531,1705857040044,-874.03,0.00027671,2]
[312390532,1705857040054,-1581.71,0.00027671,2]
[312390533,1705857040064,-500.0,0.00027671,2]
[312390534,1705857040073,-301.58285632,0.00027671,2]
[312390535,1705857040082,-500.0,0.00027671,2]
[312390536,1705857040091,-500.0,0.00027671,2]
[312390537,1705857040101,-891.85,0.00027671,2]
[312390538,1705857040111,-500.0,0.00027671,2]
[312390539,1705857040120,-6210.35,0.00027671,2]
[312390540,1705857040129,-334.34482967,0.00027671,2]
[312390541,1705857040139,-792.41,0.00027671,2]
[312390542,1705857040148,-500.0,0.00027671,2]
[312390543,1705857040157,-158.64848367,0.00027671,2]
[312390544,1705857040166,-1450.53,0.00027671,2]
[312390545,1705857040176,-500.0,0.00027671,2]
[312390546,1705857040185,-1155.39,0.00027671,2]
[312390547,1705857040195,-500.0,0.00027671,2]
[312390548,1705857040204,-500.0,0.00027671,2]
[312390549,1705857040213,-1002.97,0.00027671,2]
[312390550,1705857040222,-500.0,0.00027671,2]
[312390553,1705857040232,-7122.83,0.00027671,2]
[312390555,1705857040241,-649.37020493,0.00027671,2]
[312390556,1705857040251,-1983.83,0.00027671,2]
[312390557,1705857040260,-1127.16,0.00027671,2]
[312390558,1705857040269,-3991.04,0.00027671,2]
[312390559,1705857040278,-500.0,0.00027671,2]
[312390560,1705857040287,-5686.53,0.00027671,2]
[312390561,1705857040297,-1020.67,0.00027671,2]
[312390562,1705857040306,-717.18,0.00027671,2]
[312390563,1705857040316,-6134.31571473,0.00027671,10]
[312390564,1705857040325,-500.0,0.00027671,2]
[312390565,1705857040334,-500.0,0.00027671,2]
[312390566,1705857040343,-622.01394105,0.0002772,2]
[312390567,1705857040353,-663.39156542,0.00027896,2]
[312390568,1705857040363,-607.84511694,0.00027897,2]
[312390569,1705857040372,-12025.61262009,0.00027898,4]
[312390570,1705857040381,-5000.0,0.00027898,5]
[312390571,1705857040390,-14122.52831761,0.00027898,3]
[312390572,1705857040400,-500.0,0.00027899,4]
[312390573,1705857040409,-435.32957353,0.00027899,4]
[312390574,1705857040418,-500.0,0.00027899,4]
[312390575,1705857040427,-419.52479236,0.00027899,4]
[312390576,1705857040437,-597.8572635,0.00027899,4]
[312390577,1705857040446,-500.0,0.00027899,4]
[312390578,1705857040455,-268.0376695,0.00027899,4]
[312390579,1705857040464,-500.0,0.00027899,4]
[312390580,1705857040473,-500.0,0.00027899,4]
[312390581,1705857040482,-348.8573882,0.00027899,4]
[312390582,1705857040491,-544.26183482,0.00027899,4]
[312390583,1705857040501,-500.0,0.00027899,4]
[312390584,1705857040510,-500.0,0.00027899,4]
[312390585,1705857040519,-500.0,0.00027899,4]
[312390586,1705857040528,-500.0,0.00027899,4]
[312390587,1705857040538,-370.27679728,0.00027899,2]
[312390588,1705857040547,-500.0,0.00027899,2]
[312390589,1705857040556,-500.0,0.00027899,2]
[312390590,1705857040566,-500.0,0.00027899,2]
[312390591,1705857040575,-500.0,0.00027899,2]
[312390592,1705857040584,-500.0,0.00027899,2]
[312390593,1705857040593,-500.0,0.00027899,2]
[312390594,1705857040603,-202.14318389,0.00027899,2]
[312390595,1705857040612,-198.95797996,0.00027899,2]
[312390596,1705857040622,-500.0,0.00027899,2]
[312390597,1705857040633,-500.0,0.00027899,2]
[312390598,1705857040642,-502.2879145,0.00027899,2]
[312390599,1705857040651,-500.0,0.00027899,2]
[312390600,1705857040663,-640.22007856,0.00027899,2]
[312390601,1705857040673,-500.0,0.00027899,2]
[312390602,1705857040682,-571.32904107,0.00027899,2]
[312390603,1705857040691,-500.0,0.00027899,2]
[312390604,1705857040702,-500.0,0.00027899,2]
[312390605,1705857040712,-500.0,0.00027899,2]
[312390606,1705857040721,-500.0,0.00027899,2]
[312390607,1705857040731,-500.0,0.00027899,2]
[312390608,1705857040742,-500.0,0.00027899,2]
[312390609,1705857040753,-555.02246378,0.00027899,2]